[Event "FIDE Women World Blitz 2021"]
[Site "Warsaw"]
[Date "2021.12.30"]
[Round "14.3"]
[White "Nur-Mukhametova, Alisa"]
[Black "Jarocka, Liwia"]
[Result "1-0"]
[ECO "D23"]
[WhiteElo "2225"]
[BlackElo "1851"]
[Annotator "NA"]
[PlyCount "111"]
[EventDate "2021.12.29"]
[EventType "swiss"]
[EventCountry "POL"]
[Tiebreak "Cut1 Buchholz"]
[SourceTitle "playchess.com"]
[Source "ChessBase"]
[SourceQuality "1"]
[TimeControl "180+2"]

1. d4 {[%emt 0:00:02]} Nf6 {[%emt 0:00:00]} 2. c4 {[%emt 0:00:01]} e6 {[%emt 0:
00:01]} 3. Nf3 {[%emt 0:00:02]} d5 {[%emt 0:00:02]} 4. Nc3 {[%emt 0:00:01]}
dxc4 {[%emt 0:00:01]} 5. Qa4+ {[%emt 0:00:09]} Nbd7 {[%emt 0:00:14]} 6. e4 {
[%emt 0:00:11]} a6 {[%emt 0:00:05]} 7. Qxc4 {[%emt 0:00:35]} b5 {[%emt 0:00:03]
} 8. Qd3 {[%emt 0:00:47]} b4 {[%emt 0:00:05]} 9. Na4 {[%emt 0:00:22]} Be7 {
[%emt 0:00:01]} 10. Be2 {[%emt 0:00:09]} O-O {[%emt 0:00:10]} 11. O-O {[%emt 0:
00:03]} c5 {[%emt 0:00:03]} 12. dxc5 {[%emt 0:00:21]} Nxc5 {[%emt 0:00:03]} 13.
Nxc5 {[%emt 0:00:05]} Bxc5 {[%emt 0:00:02]} 14. e5 {[%emt 0:00:09]} Qxd3 {
[%emt 0:00:05]} 15. Bxd3 {[%emt 0:00:02]} Nd5 {[%emt 0:00:02]} 16. Bd2 {
[%emt 0:00:16]} Bb7 {[%emt 0:00:02]} 17. Rac1 {[%emt 0:00:03]} Rac8 {[%emt 0:
00:07]} 18. Ng5 {[%emt 0:00:04]} h6 {[%emt 0:00:09]} 19. Ne4 {[%emt 0:00:01]}
Bd4 {[%emt 0:00:19]} 20. Nd6 {[%emt 0:00:01]} Rxc1 {[%emt 0:00:01]} 21. Bxc1 {
[%emt 0:00:08]} Ba8 {[%emt 0:00:03]} 22. Bxa6 {[%emt 0:00:05]} Bxe5 {[%emt 0:
00:01]} 23. Nc4 {[%emt 0:00:01]} Bf6 {[%emt 0:00:04]} 24. Na5 {[%emt 0:00:06]}
Ne7 {[%emt 0:00:27]} 25. Bd3 {[%emt 0:00:03]} Bd5 {[%emt 0:00:02]} 26. Nc4 {
[%emt 0:00:02]} Ra8 {[%emt 0:00:02]} 27. a3 {[%emt 0:00:02]} Bxc4 {[%emt 0:00:
03]} 28. Bxc4 {[%emt 0:00:00]} bxa3 {[%emt 0:00:06]} 29. bxa3 {[%emt 0:00:01]}
Nc6 {[%emt 0:00:01]} 30. Bd3 {[%emt 0:00:04]} Ne5 {[%emt 0:00:01]} 31. Be4 {
[%emt 0:00:02]} Ra4 {[%emt 0:00:03]} 32. f3 {[%emt 0:00:04]} Nc4 {[%emt 0:00:
07]} 33. Bc2 {[%emt 0:00:01]} Ra7 {[%emt 0:00:07]} 34. a4 {[%emt 0:00:01]} Bd4+
{[%emt 0:00:07]} 35. Kh1 {[%emt 0:00:01]} Nb6 {[%emt 0:00:01]} 36. Rd1 {
[%emt 0:00:03]} e5 {[%emt 0:00:02]} 37. f4 {[%emt 0:00:04]} f6 {[%emt 0:00:08]}
38. fxe5 {[%emt 0:00:01]} fxe5 {[%emt 0:00:00]} 39. Ba3 {[%emt 0:00:04]} Nxa4 {
[%emt 0:00:05]} 40. Bb3+ {[%emt 0:00:00]} Kh8 {[%emt 0:00:03]} 41. Bb4 {
[%emt 0:00:02]} Rb7 {[%emt 0:00:08]} 42. Bxa4 {[%emt 0:00:03]} Rxb4 {[%emt 0:
00:00]} 43. Bc6 {[%emt 0:00:01]} Rb6 {[%emt 0:00:07]} 44. Be4 {[%emt 0:00:01]}
Rd6 {[%emt 0:00:02]} 45. Rb1 {[%emt 0:00:03]} Rd8 {[%emt 0:00:02]} 46. h4 {
[%emt 0:00:01]} Rf8 {[%emt 0:00:01]} 47. h5 {[%emt 0:00:02]} Rd8 {[%emt 0:00:
12]} 48. Kh2 {[%emt 0:00:02]} Kg8 {[%emt 0:00:01]} 49. Kh3 {[%emt 0:00:02]} Kf7
{[%emt 0:00:02]} 50. Rb7+ {[%emt 0:00:02]} Kf6 {[%emt 0:00:02]} 51. Bg6 {
[%emt 0:00:03]} Rf8 {[%emt 0:00:07]} 52. Rc7 {[%emt 0:00:03]} Rg8 {[%emt 0:00:
20]} 53. Kg4 {[%emt 0:00:01]} Rf8 {[%emt 0:00:06]} 54. Kh3 {[%emt 0:00:02]} Rg8
{[%emt 0:00:01]} 55. Rf7+ {[%emt 0:00:01]} Kg5 {[%emt 0:00:02]} 56. Rf5# {
[%emt 0:00:02]} 1-0

[Event "FIDE Women World Blitz 2021"]
[Site "Warsaw"]
[Date "2021.12.30"]
[Round "14.4"]
[White "Goryachkina, Aleksandra"]
[Black "Buksa, Nataliya"]
[Result "1/2-1/2"]
[ECO "D35"]
[WhiteElo "2604"]
[BlackElo "2199"]
[Annotator "ChessBase"]
[PlyCount "53"]
[EventDate "2021.12.29"]
[EventType "swiss"]
[EventCountry "POL"]
[Tiebreak "Cut1 Buchholz"]
[SourceTitle "playchess.com"]
[Source "ChessBase"]
[SourceQuality "1"]
[TimeControl "180+2"]

1. d4 {[%emt 0:00:01]} d5 {[%emt 0:00:01]} 2. c4 {[%emt 0:00:02]} e6 {[%emt 0:
00:01]} 3. Nc3 {[%emt 0:00:03]} Be7 {[%emt 0:00:00]} 4. cxd5 {[%emt 0:00:03]}
exd5 {[%emt 0:00:01]} 5. Bf4 {[%emt 0:00:02]} Nf6 {[%emt 0:00:01]} 6. e3 {
[%emt 0:00:02]} c6 {[%emt 0:00:01]} 7. Bd3 {[%emt 0:00:10]} Nbd7 {[%emt 0:00:
01]} 8. h3 {[%emt 0:00:05]} Nf8 {[%emt 0:00:22]} 9. Nf3 {[%emt 0:00:01]} Ng6 {
[%emt 0:00:02]} 10. Bh2 {[%emt 0:00:04]} Bd6 {[%emt 0:00:01]} 11. Bxd6 {
[%emt 0:00:23]} Qxd6 {[%emt 0:00:01]} 12. O-O {[%emt 0:00:03]} O-O {[%emt 0:00:
14]} 13. Rb1 {[%emt 0:00:02]} a5 {[%emt 0:00:03]} 14. Qc2 {[%emt 0:00:05]} Bd7
{[%emt 0:00:27]} 15. a3 {[%emt 0:00:07]} Rae8 {[%emt 0:00:02]} 16. b4 {[%emt 0:
00:06]} axb4 {[%emt 0:00:01]} 17. axb4 {[%emt 0:00:01]} Nh5 {[%emt 0:00:05]}
18. b5 {[%emt 0:00:27]} Qf6 {[%emt 0:00:01]} 19. Qd1 {[%emt 0:00:13]} Nh4 {
[%emt 0:00:26]} 20. Nxh4 {[%emt 0:00:06]} Qxh4 {[%emt 0:00:01]} 21. bxc6 {
[%emt 0:00:05]} bxc6 {[%emt 0:00:01]} 22. Be2 {[%emt 0:00:28]} Nf6 {[%emt 0:00:
07]} 23. Rb7 {[%emt 0:00:06]} Bxh3 {[%emt 0:00:34]} 24. gxh3 {[%emt 0:00:11]}
Rxe3 {[%emt 0:00:01]} 25. fxe3 {[%emt 0:00:17]} Qg3+ {[%emt 0:00:01]} 26. Kh1 {
[%emt 0:00:02]} Qxh3+ {[%emt 0:00:02]} 27. Kg1 {[%emt 0:00:00]} 1/2-1/2

[Event "FIDE Women World Blitz 2021"]
[Site "Warsaw"]
[Date "2021.12.30"]
[Round "14.4"]
[White "Kazarian, Anna-Maja"]
[Black "Szczotka, Klara"]
[Result "0-1"]
[ECO "A00"]
[WhiteElo "2138"]
[BlackElo "1584"]
[Annotator "NA"]
[PlyCount "64"]
[EventDate "2021.12.29"]
[EventType "swiss"]
[EventCountry "POL"]
[Tiebreak "Cut1 Buchholz"]
[SourceTitle "playchess.com"]
[Source "ChessBase"]
[SourceQuality "1"]
[TimeControl "180+2"]

1. b4 {[%emt 0:00:02]} e6 {[%emt 0:00:01]} 2. Bb2 {[%emt 0:00:03]} Nf6 {
[%emt 0:00:02]} 3. a3 {[%emt 0:00:01]} d5 {[%emt 0:00:01]} 4. e3 {[%emt 0:00:
04]} b6 {[%emt 0:00:02]} 5. Nf3 {[%emt 0:00:07]} Bb7 {[%emt 0:00:02]} 6. Be2 {
[%emt 0:00:01]} Bd6 {[%emt 0:00:03]} 7. O-O {[%emt 0:00:03]} O-O {[%emt 0:00:
02]} 8. d4 {[%emt 0:00:08]} Nbd7 {[%emt 0:00:02]} 9. Ne5 {[%emt 0:00:24]} c5 {
[%emt 0:00:10]} 10. b5 {[%emt 0:00:23]} c4 {[%emt 0:00:22]} 11. f4 {[%emt 0:00:
20]} Ne4 {[%emt 0:00:29]} 12. Bf3 {[%emt 0:00:31]} f5 {[%emt 0:00:24]} 13. Qe1
{[%emt 0:00:16]} Nxe5 {[%emt 0:00:46]} 14. fxe5 {[%emt 0:00:04]} Be7 {[%emt 0:
00:02]} 15. Nc3 {[%emt 0:00:21]} Qd7 {[%emt 0:00:10]} 16. Bxe4 {[%emt 0:00:20]}
fxe4 {[%emt 0:00:04]} 17. a4 {[%emt 0:00:02]} Rf5 {[%emt 0:00:15]} 18. g4 {
[%emt 0:00:11]} Rg5 {[%emt 0:00:05]} 19. Rf4 {[%emt 0:00:01]} h5 {[%emt 0:00:
15]} 20. Qg3 {[%emt 0:00:01]} Qe8 {[%emt 0:00:09]} 21. h4 {[%emt 0:00:01]} Rxg4
{[%emt 0:00:02]} 22. Rxg4 {[%emt 0:00:01]} hxg4 {[%emt 0:00:01]} 23. Qxg4 {
[%emt 0:00:01]} Bc8 {[%emt 0:00:12]} 24. Rf1 {[%emt 0:00:01]} Bd7 {[%emt 0:00:
01]} 25. h5 {[%emt 0:00:02]} Qd8 {[%emt 0:00:04]} 26. h6 {[%emt 0:00:14]} Bg5 {
[%emt 0:00:01]} 27. hxg7 {[%emt 0:00:02]} Bxe3+ {[%emt 0:00:04]} 28. Kh1 {
[%emt 0:00:03]} Qg5 {[%emt 0:00:01]} 29. Qh3 {[%emt 0:00:09]} Kxg7 {[%emt 0:00:
03]} 30. Nxd5 {[%emt 0:00:01]} Rh8 {[%emt 0:00:02]} 31. Rf7+ {[%emt 0:00:01]}
Kxf7 {[%emt 0:00:02]} 32. Qxh8 {[%emt 0:00:03]} Qg1# {[%emt 0:00:02]} 0-1

[Event "FIDE Women World Blitz 2021"]
[Site "Warsaw"]
[Date "2021.12.30"]
[Round "14.5"]
[White "Muzychuk, Anna"]
[Black "Shuvalova, Polina"]
[Result "0-1"]
[ECO "B12"]
[WhiteElo "2533"]
[BlackElo "2515"]
[Annotator "ChessBase"]
[PlyCount "114"]
[EventDate "2021.12.29"]
[EventType "swiss"]
[EventCountry "POL"]
[Tiebreak "Cut1 Buchholz"]
[SourceTitle "playchess.com"]
[Source "ChessBase"]
[SourceQuality "1"]
[TimeControl "180+2"]

1. e4 {[%emt 0:00:01]} c6 {[%emt 0:00:00]} 2. d4 {[%emt 0:00:00]} d5 {[%emt 0:
00:01]} 3. e5 {[%emt 0:00:01]} Bf5 {[%emt 0:00:02]} 4. Bd3 {[%emt 0:00:01]}
Bxd3 {[%emt 0:00:03]} 5. Qxd3 {[%emt 0:00:01]} e6 {[%emt 0:00:01]} 6. Ne2 {
[%emt 0:00:01]} c5 {[%emt 0:00:07]} 7. c3 {[%emt 0:00:01]} Qb6 {[%emt 0:00:08]}
8. O-O {[%emt 0:00:08]} Nc6 {[%emt 0:00:01]} 9. Nd2 {[%emt 0:00:03]} Rc8 {
[%emt 0:00:05]} 10. Nf3 {[%emt 0:00:06]} Qa6 {[%emt 0:00:04]} 11. Qd1 {[%emt 0:
00:04]} Nge7 {[%emt 0:00:04]} 12. dxc5 {[%emt 0:00:12]} Ng6 {[%emt 0:00:02]}
13. Be3 {[%emt 0:00:17]} Ncxe5 {[%emt 0:00:09]} 14. Nxe5 {[%emt 0:00:01]} Nxe5
{[%emt 0:00:01]} 15. b4 {[%emt 0:00:06]} Nc4 {[%emt 0:00:16]} 16. Nd4 {[%emt 0:
00:39]} Be7 {[%emt 0:00:02]} 17. a4 {[%emt 0:00:21]} O-O {[%emt 0:00:15]} 18.
b5 {[%emt 0:00:05]} Qa5 {[%emt 0:00:01]} 19. c6 {[%emt 0:00:02]} Nxe3 {[%emt 0:
00:31]} 20. fxe3 {[%emt 0:00:01]} Qxc3 {[%emt 0:00:01]} 21. Rf3 {[%emt 0:00:33]
} bxc6 {[%emt 0:00:08]} 22. Nxc6 {[%emt 0:00:01]} Bf6 {[%emt 0:00:21]} 23. Rc1
{[%emt 0:00:04]} Qb2 {[%emt 0:00:10]} 24. Rc2 {[%emt 0:00:02]} Qa3 {[%emt 0:00:
02]} 25. e4 {[%emt 0:00:11]} Qxa4 {[%emt 0:00:08]} 26. exd5 {[%emt 0:00:09]}
exd5 {[%emt 0:00:34]} 27. Rxf6 {[%emt 0:00:05]} gxf6 {[%emt 0:00:05]} 28. Ne7+
{[%emt 0:00:01]} Kg7 {[%emt 0:00:01]} 29. Nxc8 {[%emt 0:00:02]} Rxc8 {[%emt 0:
00:02]} 30. Rd2 {[%emt 0:00:14]} Qxd1+ {[%emt 0:00:02]} 31. Rxd1 {[%emt 0:00:
01]} Rc5 {[%emt 0:00:00]} 32. Ra1 {[%emt 0:00:03]} Rxb5 {[%emt 0:00:02]} 33.
Rxa7 {[%emt 0:00:01]} Rb2 {[%emt 0:00:08]} 34. Rd7 {[%emt 0:00:04]} Rd2 {
[%emt 0:00:01]} 35. h3 {[%emt 0:00:02]} f5 {[%emt 0:00:00]} 36. Rd6 {[%emt 0:
00:02]} f4 {[%emt 0:00:10]} 37. Kf1 {[%emt 0:00:05]} f6 {[%emt 0:00:03]} 38.
Rd8 {[%emt 0:00:10]} Kg6 {[%emt 0:00:03]} 39. Rg8+ {[%emt 0:00:01]} Kf7 {
[%emt 0:00:01]} 40. Rh8 {[%emt 0:00:01]} Kg7 {[%emt 0:00:01]} 41. Rd8 {[%emt 0:
00:01]} h6 {[%emt 0:00:01]} 42. Re8 {[%emt 0:00:08]} Kg6 {[%emt 0:00:05]} 43.
Rg8+ {[%emt 0:00:01]} Kf5 {[%emt 0:00:01]} 44. Rh8 {[%emt 0:00:00]} Kg6 {
[%emt 0:00:02]} 45. Rg8+ {[%emt 0:00:01]} Kf7 {[%emt 0:00:01]} 46. Rh8 {
[%emt 0:00:01]} Kg7 {[%emt 0:00:01]} 47. Rd8 {[%emt 0:00:01]} d4 {[%emt 0:00:
01]} 48. Rd7+ {[%emt 0:00:06]} Kg6 {[%emt 0:00:01]} 49. Rd5 {[%emt 0:00:01]} d3
{[%emt 0:00:04]} 50. Kg1 {[%emt 0:00:07]} Kf7 {[%emt 0:00:02]} 51. Rd4 {
[%emt 0:00:05]} Ke6 {[%emt 0:00:04]} 52. Rxf4 {[%emt 0:00:01]} Ke5 {[%emt 0:00:
06]} 53. Ra4 {[%emt 0:00:01]} Re2 {[%emt 0:00:10]} 54. Kf1 {[%emt 0:00:01]} Re4
{[%emt 0:00:02]} 55. Ra5+ {[%emt 0:00:03]} Kf4 {[%emt 0:00:02]} 56. Rd5 {
[%emt 0:00:02]} Ke3 {[%emt 0:00:02]} 57. Ke1 {[%emt 0:00:03]} Ra4 {[%emt 0:00:
02]} 0-1

[Event "FIDE Women World Blitz 2021"]
[Site "Warsaw"]
[Date "2021.12.30"]
[Round "14.5"]
[White "Malicka, Maria"]
[Black "Jakubowska, Anna"]
[Result "1-0"]
[ECO "B15"]
[WhiteElo "2307"]
[BlackElo "2106"]
[Annotator "NA"]
[PlyCount "55"]
[EventDate "2021.12.29"]
[EventType "swiss"]
[EventCountry "POL"]
[Tiebreak "Cut1 Buchholz"]
[SourceTitle "playchess.com"]
[Source "ChessBase"]
[SourceQuality "1"]
[TimeControl "180+2"]

1. e4 {[%emt 0:00:01]} c6 {[%emt 0:00:00]} 2. d4 {[%emt 0:00:01]} d5 {[%emt 0:
00:01]} 3. Nc3 {[%emt 0:00:01]} dxe4 {[%emt 0:00:02]} 4. Nxe4 {[%emt 0:00:00]}
Nf6 5. Nxf6+ {[%emt 0:00:01]} exf6 {[%emt 0:00:03]} 6. c3 {[%emt 0:00:00]} Bd6
{[%emt 0:00:01]} 7. Bd3 {[%emt 0:00:01]} O-O {[%emt 0:00:02]} 8. Qc2 Re8+ {
[%emt 0:00:01]} 9. Ne2 {[%emt 0:00:01]} h5 {[%emt 0:00:01]} 10. O-O {[%emt 0:
00:03]} Nd7 {[%emt 0:00:01]} 11. Nf4 {[%emt 0:00:09]} h4 {[%emt 0:00:02]} 12.
Qd1 {[%emt 0:00:04]} g6 {[%emt 0:00:29]} 13. Nxg6 {[%emt 0:00:07]} fxg6 {
[%emt 0:00:05]} 14. Bxg6 {[%emt 0:00:01]} Re7 {[%emt 0:00:16]} 15. Qh5 {
[%emt 0:00:05]} Nf8 {[%emt 0:00:01]} 16. Bh6 {[%emt 0:00:03]} Be6 {[%emt 0:00:
25]} 17. Rfe1 {[%emt 0:00:11]} Qd7 {[%emt 0:00:24]} 18. Re4 {[%emt 0:00:25]}
Bf7 {[%emt 0:00:42]} 19. Bxf7+ {[%emt 0:00:48]} Rxf7 {[%emt 0:00:00]} 20. Rg4+
{[%emt 0:00:10]} Qxg4 {[%emt 0:00:07]} 21. Qxg4+ {[%emt 0:00:01]} Kh7 {[%emt 0:
00:06]} 22. Qh5 {[%emt 0:00:05]} Kg8 {[%emt 0:00:01]} 23. Re1 {[%emt 0:00:18]}
Rh7 {[%emt 0:00:20]} 24. Re4 {[%emt 0:00:21]} Kh8 {[%emt 0:00:05]} 25. Rxh4 {
[%emt 0:00:07]} Bf4 {[%emt 0:00:22]} 26. Rxf4 {[%emt 0:00:08]} Rd8 {[%emt 0:00:
00]} 27. Rh4 {[%emt 0:00:12]} Rd5 {[%emt 0:00:03]} 28. Qe8 {[%emt 0:00:09]} 1-0

[Event "FIDE Women World Blitz 2021"]
[Site "Warsaw"]
[Date "2021.12.30"]
[Round "14.6"]
[White "Mamedjarova, Zeinab"]
[Black "Kosteniuk, Alexandra"]
[Result "0-1"]
[ECO "D05"]
[WhiteElo "2249"]
[BlackElo "2518"]
[Annotator "ChessBase"]
[PlyCount "124"]
[EventDate "2021.12.29"]
[EventType "swiss"]
[EventCountry "POL"]
[Tiebreak "Cut1 Buchholz"]
[SourceTitle "playchess.com"]
[Source "ChessBase"]
[SourceQuality "1"]
[TimeControl "180+2"]

1. d4 {[%emt 0:00:02]} Nf6 {[%emt 0:00:01]} 2. Nf3 {[%emt 0:00:01]} d5 {
[%emt 0:00:00]} 3. e3 {[%emt 0:00:01]} e6 {[%emt 0:00:03]} 4. Bd3 {[%emt 0:00:
01]} Be7 {[%emt 0:00:02]} 5. O-O {[%emt 0:00:02]} c5 {[%emt 0:00:02]} 6. b3 {
[%emt 0:00:03]} Nc6 {[%emt 0:00:03]} 7. Bb2 {[%emt 0:00:04]} cxd4 {[%emt 0:00:
04]} 8. exd4 {[%emt 0:00:02]} b6 {[%emt 0:00:08]} 9. Ne5 {[%emt 0:00:08]} Nxe5
{[%emt 0:00:04]} 10. dxe5 {[%emt 0:00:01]} Nd7 {[%emt 0:00:01]} 11. c4 {
[%emt 0:00:01]} Bb7 {[%emt 0:00:13]} 12. cxd5 {[%emt 0:00:01]} Bxd5 {[%emt 0:
00:10]} 13. Nd2 {[%emt 0:00:49]} Nc5 {[%emt 0:00:18]} 14. Bb5+ {[%emt 0:00:03]}
Kf8 {[%emt 0:00:01]} 15. Qe2 {[%emt 0:00:11]} h5 {[%emt 0:00:13]} 16. Rad1 {
[%emt 0:00:07]} Qc7 {[%emt 0:00:03]} 17. Bc4 {[%emt 0:00:06]} Bc6 {[%emt 0:00:
02]} 18. f4 {[%emt 0:00:05]} g6 {[%emt 0:00:04]} 19. b4 {[%emt 0:00:38]} Na4 {
[%emt 0:00:12]} 20. Ba1 {[%emt 0:00:33]} b5 {[%emt 0:00:01]} 21. Bd3 {[%emt 0:
00:05]} h4 {[%emt 0:00:08]} 22. h3 {[%emt 0:00:04]} Bxb4 {[%emt 0:00:13]} 23.
Be4 {[%emt 0:00:01]} Rd8 {[%emt 0:00:14]} 24. Nf3 {[%emt 0:00:11]} Bxe4 {
[%emt 0:00:23]} 25. Qxe4 {[%emt 0:00:01]} Qc5+ {[%emt 0:00:02]} 26. Kh1 {
[%emt 0:00:02]} Rd5 {[%emt 0:00:03]} 27. Rc1 {[%emt 0:00:02]} Nc3 {[%emt 0:00:
08]} 28. Bxc3 {[%emt 0:00:02]} Bxc3 {[%emt 0:00:01]} 29. Rc2 {[%emt 0:00:19]}
b4 {[%emt 0:00:02]} 30. Rfc1 {[%emt 0:00:02]} Kg7 {[%emt 0:00:06]} 31. Ng5 {
[%emt 0:00:04]} Rhd8 {[%emt 0:00:06]} 32. Qe2 {[%emt 0:00:03]} Rd4 {[%emt 0:00:
18]} 33. f5 {[%emt 0:00:01]} exf5 {[%emt 0:00:13]} 34. e6 {[%emt 0:00:01]} Qd6
{[%emt 0:00:07]} 35. Nxf7 {[%emt 0:00:12]} Rd1+ {[%emt 0:00:03]} 36. Rxd1 {
[%emt 0:00:00]} Qxd1+ {[%emt 0:00:00]} 37. Qxd1 {[%emt 0:00:01]} Rxd1+ {
[%emt 0:00:01]} 38. Kh2 {[%emt 0:00:00]} Re1 {[%emt 0:00:01]} 39. Ng5 {[%emt 0:
00:09]} Be5+ {[%emt 0:00:06]} 40. g3 {[%emt 0:00:00]} Bxg3+ {[%emt 0:00:04]}
41. Kg2 {[%emt 0:00:00]} Kf6 {[%emt 0:00:01]} 42. Nf3 {[%emt 0:00:02]} Rxe6 {
[%emt 0:00:02]} 43. Rb2 {[%emt 0:00:03]} a5 {[%emt 0:00:00]} 44. Rc2 {[%emt 0:
00:01]} a4 {[%emt 0:00:02]} 45. Rb2 {[%emt 0:00:03]} Rb6 {[%emt 0:00:03]} 46.
Nd2 {[%emt 0:00:02]} Be5 {[%emt 0:00:04]} 47. Rb1 {[%emt 0:00:01]} Bc3 {
[%emt 0:00:03]} 48. Nc4 {[%emt 0:00:01]} Re6 {[%emt 0:00:00]} 49. Kf3 {[%emt 0:
00:01]} g5 {[%emt 0:00:02]} 50. Ne3 {[%emt 0:00:01]} Rd6 {[%emt 0:00:03]} 51.
Ke2 {[%emt 0:00:06]} Rd2+ {[%emt 0:00:01]} 52. Kf3 {[%emt 0:00:01]} Rxa2 {
[%emt 0:00:04]} 53. Rd1 {[%emt 0:00:01]} Rd2 {[%emt 0:00:01]} 54. Nd5+ {
[%emt 0:00:01]} Ke5 {[%emt 0:00:01]} 55. Nxc3 {[%emt 0:00:02]} bxc3 {[%emt 0:
00:00]} 56. Ra1 {[%emt 0:00:02]} Rd4 {[%emt 0:00:02]} 57. Re1+ {[%emt 0:00:01]}
Re4 {[%emt 0:00:01]} 58. Rc1 {[%emt 0:00:01]} Rc4 {[%emt 0:00:02]} 59. Re1+ {
[%emt 0:00:01]} Kd5 {[%emt 0:00:01]} 60. Rd1+ {[%emt 0:00:01]} Kc5 {[%emt 0:00:
01]} 61. Ke3 {[%emt 0:00:03]} c2 {[%emt 0:00:01]} 62. Rc1 {[%emt 0:00:01]} g4 {
[%emt 0:00:20]} 0-1

[Event "FIDE Women World Blitz 2021"]
[Site "Warsaw"]
[Date "2021.12.30"]
[Round "14.6"]
[White "Katkov, Michelle"]
[Black "Movsesian, Julia"]
[Result "0-1"]
[ECO "C41"]
[WhiteElo "1651"]
[BlackElo "2322"]
[Annotator "NA"]
[PlyCount "82"]
[EventDate "2021.12.29"]
[EventType "swiss"]
[EventCountry "POL"]
[Tiebreak "Cut1 Buchholz"]
[SourceTitle "playchess.com"]
[Source "ChessBase"]
[SourceQuality "1"]
[TimeControl "180+2"]

1. e4 {[%emt 0:00:01]} d6 {[%emt 0:00:00]} 2. d4 {[%emt 0:00:01]} Nf6 {[%emt 0:
00:01]} 3. Nc3 {[%emt 0:00:01]} Nbd7 {[%emt 0:00:01]} 4. Nf3 {[%emt 0:00:01]}
e5 {[%emt 0:00:00]} 5. Bc4 {[%emt 0:00:02]} Be7 {[%emt 0:00:01]} 6. O-O {
[%emt 0:00:02]} O-O {[%emt 0:00:01]} 7. Re1 {[%emt 0:00:04]} c6 {[%emt 0:00:01]
} 8. a4 {[%emt 0:00:02]} h6 {[%emt 0:00:03]} 9. d5 {[%emt 0:00:04]} Qc7 {
[%emt 0:00:02]} 10. Bb3 {[%emt 0:00:15]} a5 {[%emt 0:00:05]} 11. Be3 {[%emt 0:
00:04]} Re8 {[%emt 0:00:08]} 12. Qd2 {[%emt 0:00:06]} Nf8 {[%emt 0:00:06]} 13.
Rad1 {[%emt 0:00:07]} Ng6 {[%emt 0:00:02]} 14. h3 {[%emt 0:00:22]} Bf8 {
[%emt 0:00:03]} 15. Qe2 {[%emt 0:00:03]} Nh5 {[%emt 0:00:14]} 16. Nd2 {[%emt 0:
00:20]} Nhf4 {[%emt 0:00:08]} 17. Qf3 {[%emt 0:00:01]} Nh4 {[%emt 0:00:07]} 18.
Qg3 {[%emt 0:00:02]} Nhxg2 {[%emt 0:00:04]} 19. Kh2 {[%emt 0:00:14]} Nxe1 {
[%emt 0:00:12]} 20. Bxf4 {[%emt 0:00:19]} exf4 {[%emt 0:00:12]} 21. Qxf4 {
[%emt 0:00:02]} Qd7 {[%emt 0:00:10]} 22. Qg3 {[%emt 0:00:08]} Nxc2 {[%emt 0:00:
15]} 23. Bxc2 {[%emt 0:00:01]} Qe7 {[%emt 0:00:01]} 24. f4 {[%emt 0:00:07]} Bd7
{[%emt 0:00:05]} 25. Rg1 {[%emt 0:00:08]} Qf6 {[%emt 0:00:05]} 26. Nf3 {
[%emt 0:00:14]} b5 {[%emt 0:00:18]} 27. e5 {[%emt 0:00:04]} dxe5 {[%emt 0:00:
09]} 28. fxe5 {[%emt 0:00:02]} Qe7 {[%emt 0:00:01]} 29. d6 {[%emt 0:00:22]} Qe6
{[%emt 0:00:02]} 30. Ne4 {[%emt 0:00:13]} Kh8 {[%emt 0:00:01]} 31. Nc5 {
[%emt 0:00:03]} Qc4 {[%emt 0:00:06]} 32. Qf2 {[%emt 0:00:17]} Qf4+ {[%emt 0:00:
10]} 33. Rg3 {[%emt 0:00:04]} Bf5 {[%emt 0:00:03]} 34. Bb3 {[%emt 0:00:02]} Be4
{[%emt 0:00:05]} 35. Ba2 {[%emt 0:00:07]} Bxf3 {[%emt 0:00:01]} 36. Qxf3 {
[%emt 0:00:01]} Qxf3 {[%emt 0:00:03]} 37. Rxf3 {[%emt 0:00:00]} Rxe5 {[%emt 0:
00:00]} 38. Nd3 {[%emt 0:00:08]} Re2+ {[%emt 0:00:01]} 39. Kg3 {[%emt 0:00:02]}
Bxd6+ {[%emt 0:00:01]} 40. Kg4 {[%emt 0:00:02]} Re4+ {[%emt 0:00:01]} 41. Nf4 {
[%emt 0:00:03]} g5 {[%emt 0:00:01]} 0-1

[Event "FIDE Women World Blitz 2021"]
[Site "Warsaw"]
[Date "2021.12.30"]
[Round "14.7"]
[White "Bodnaruk, Anastasia"]
[Black "Kulon, Klaudia"]
[Result "0-1"]
[ECO "C76"]
[WhiteElo "2396"]
[BlackElo "2328"]
[Annotator "NA"]
[PlyCount "76"]
[EventDate "2021.12.29"]
[EventType "swiss"]
[EventCountry "POL"]
[Tiebreak "Cut1 Buchholz"]
[SourceTitle "playchess.com"]
[Source "ChessBase"]
[SourceQuality "1"]
[TimeControl "180+2"]

1. e4 {[%emt 0:00:01]} e5 {[%emt 0:00:00]} 2. Nf3 {[%emt 0:00:00]} Nc6 {
[%emt 0:00:01]} 3. Bb5 {[%emt 0:00:01]} a6 4. Ba4 {[%emt 0:00:01]} d6 {[%emt 0:
00:01]} 5. O-O {[%emt 0:00:02]} Bd7 {[%emt 0:00:01]} 6. c3 {[%emt 0:00:04]} g6
{[%emt 0:00:01]} 7. d4 {[%emt 0:00:02]} Bg7 {[%emt 0:00:00]} 8. d5 {[%emt 0:00:
07]} Nce7 {[%emt 0:00:03]} 9. Bxd7+ {[%emt 0:00:10]} Qxd7 {[%emt 0:00:01]} 10.
c4 {[%emt 0:00:00]} h6 {[%emt 0:00:01]} 11. Nc3 {[%emt 0:00:01]} f5 {[%emt 0:
00:01]} 12. Nd2 {[%emt 0:00:25]} fxe4 {[%emt 0:00:06]} 13. Ndxe4 {[%emt 0:00:
02]} Nf6 {[%emt 0:00:01]} 14. Nxf6+ {[%emt 0:00:08]} Bxf6 {[%emt 0:00:02]} 15.
f4 {[%emt 0:00:01]} Nf5 {[%emt 0:00:20]} 16. Ne4 {[%emt 0:00:08]} Bg7 {[%emt 0:
00:01]} 17. Qg4 {[%emt 0:00:32]} Ne7 {[%emt 0:00:15]} 18. Qg3 {[%emt 0:00:30]}
O-O {[%emt 0:00:05]} 19. Bd2 {[%emt 0:00:02]} Kh7 {[%emt 0:00:23]} 20. fxe5 {
[%emt 0:00:08]} dxe5 {[%emt 0:00:10]} 21. Nc5 {[%emt 0:00:07]} Qd6 {[%emt 0:00:
10]} 22. Ne6 {[%emt 0:00:01]} Rf5 {[%emt 0:00:18]} 23. Nxg7 {[%emt 0:00:21]}
Kxg7 {[%emt 0:00:01]} 24. Bc3 {[%emt 0:00:01]} Re8 {[%emt 0:00:08]} 25. Rae1 {
[%emt 0:00:05]} Kh7 {[%emt 0:00:22]} 26. Bxe5 {[%emt 0:00:15]} Qc5+ {[%emt 0:
00:06]} 27. Kh1 {[%emt 0:00:01]} Qxc4 {[%emt 0:00:04]} 28. Rf3 {[%emt 0:00:26]}
Rxf3 {[%emt 0:00:20]} 29. Qxf3 {[%emt 0:00:05]} Nf5 {[%emt 0:00:23]} 30. g4 {
[%emt 0:00:04]} Rxe5 {[%emt 0:00:06]} 31. Rf1 {[%emt 0:00:07]} Ng7 {[%emt 0:00:
02]} 32. Rd1 {[%emt 0:00:02]} Qc2 {[%emt 0:00:04]} 33. Rf1 {[%emt 0:00:01]} Qe2
{[%emt 0:00:01]} 34. Qf7 {[%emt 0:00:01]} Qe4+ {[%emt 0:00:02]} 35. Kg1 {
[%emt 0:00:01]} Rxd5 {[%emt 0:00:05]} 36. h3 {[%emt 0:00:02]} Rd2 {[%emt 0:00:
01]} 37. Rf2 {[%emt 0:00:00]} Qe1+ {[%emt 0:00:01]} 38. Kg2 {[%emt 0:00:01]}
Rxf2+ {[%emt 0:00:02]} 0-1